bitfinex/quotes_SOLUSD_20240615
["timestamp","ask_amount","ask_price","bid_price","bid_amount"]
[1718472263747,5.6,145.09,145.08,2.5503]
[1718472264734,5.6,145.09,145.08,7.6509]
[1718472265044,5.6,145.09,145.08,25.503]
[1718472265711,5.6,145.1,145.09,2.5501]
[1718472266734,5.6,145.1,145.08,22.9527]
[1718472266935,5.6,145.1,145.08,25.5028]
[1718472267843,5.6,145.1,145.08,7.6507]
[1718472268151,5.6,145.1,145.08,2.5501]
[1718472268941,8.1499,145.1,145.08,2.5501]
[1718472269338,5.6,145.1,145.08,7.6507]
[1718472272922,5.6,145.1,145.08,2.5501]
[1718472273127,8.1499,145.1,145.08,2.5501]
[1718472273422,8.1499,145.1,145.07,22.9535]
[1718472273423,8.1499,145.1,145.07,25.5038]
[1718472273749,8.1499,145.1,145.07,22.9535]
[1718472273957,13.2498,145.1,145.07,25.5038]
[1718472274537,8.1497,145.11,145.09,2.5501]
[1718472275120,8.1497,145.11,145.08,25.5023]
[1718472275641,31.0978,145.11,145.08,2.5501]
[1718472275830,31.0978,145.11,145.08,7.6506]
[1718472278346,2.5499,145.1,145.08,2.5501]
[1718472278717,2.5499,145.1,145.07,25.5038]
[1718472278941,2.5499,145.1,145.07,22.9535]
[1718472279427,13.2497,145.11,145.08,7.6507]
[1718472279735,20.899,145.11,145.08,7.6507]
[1718472279940,13.2497,145.11,145.08,7.6507]
[1718472280650,20.899,145.11,145.08,7.6507]
[1718472282331,13.2497,145.11,145.08,7.6507]
[1718472282533,13.2497,145.11,145.08,15.3016]
[1718472283041,31.0984,145.11,145.08,2.5502]
[1718472283249,13.2504,145.09,145.06,15.3035]
[1718472283552,5.6,145.09,145.07,7.6513]
[1718472283729,31.0999,145.1,145.07,7.6513]
[1718472283934,28.5498,145.1,145.07,2.5504]
[1718472284134,13.2501,145.1,145.07,7.6513]
[1718472284355,2.5501,145.09,145.07,2.5504]
[1718472284724,31.1,145.1,145.07,2.5504]
[1718472285549,2.5501,145.09,145.07,2.5504]
[1718472285853,31.1,145.1,145.07,2.5504]
[1718472286018,8.1501,145.09,145.07,2.5504]
[1718472287451,8.1501,145.09,145.06,25.5061]
[1718472291555,8.1501,145.09,145.07,2.5504]
[1718472292250,5.6,145.09,145.07,2.5504]
[1718472292635,5.6,145.08,145.07,2.5504]
[1718472293454,5.6,145.08,145.06,25.5061]
[1718472294128,5.6,145.08,145.06,7.6516]
[1718472294328,5.6,145.08,145.06,15.3036]
[1718472295272,5.6,145.08,145.06,7.6516]
[1718472296154,5.6,145.08,145.07,2.5504]
[1718472296355,2.5501,145.09,145.07,2.5504]
[1718472296537,5.6,145.08,145.07,2.5504]
[1718472296834,5.6,145.08,145.06,25.506]
[1718472297034,5.6,145.08,145.07,2.5504]
[1718472297234,5.6,145.08,145.06,7.6516]
[1718472297846,5.6,145.08,145.06,15.3035]
[1718472298045,5.6,145.08,145.06,25.5061]
[1718472298364,5.6,145.08,145.07,2.5504]
[1718472299357,5.6,145.08,145.06,25.5061]
[1718472303347,5.6,145.08,145.06,7.6516]
[1718472303757,5.6,145.08,145.05,22.9568]
[1718472303937,8.1503,145.08,145.06,2.5506]
[1718472304139,5.6,145.08,145.06,7.6519]
[1718472304545,8.1503,145.08,145.06,2.5506]
[1718472304762,5.6,145.08,145.06,7.6519]
[1718472308368,5.6,145.08,145.06,2.5506]
[1718472310567,5.6,145.08,145.06,7.6519]
[1718472313469,5.6,145.08,145.06,2.5506]
[1718472316172,5.6,145.08,145.06,7.6519]
[1718472320685,5.6,145.11,145.02,5.6]
[1718472320686,2.55,145.1,145.07,5.1009]
[1718472320872,2.5498,145.11,145.08,15.3016]
[1718472321073,7.6493,145.11,145.08,15.3015]
[1718472321276,13.2493,145.11,145.08,7.6506]
[1718472321491,7.6493,145.11,145.08,7.6506]
[1718472321794,8.1499,145.1,145.07,15.3022]
[1718472322099,5.6,145.09,145.07,7.651]
[1718472322806,20.8997,145.1,145.07,7.651]
[1718472323101,13.2498,145.1,145.07,7.651]
[1718472323598,20.8997,145.1,145.07,7.651]
[1718472323898,20.8997,145.1,145.07,2.5503]
[1718472324102,2.5501,145.09,145.07,2.5503]
[1718472324288,31.0997,145.1,145.07,2.5503]
[1718472324592,8.1501,145.09,145.07,2.5503]
[1718472325107,2.5503,145.08,145.05,12.7536]
[1718472325295,13.2509,145.08,145.05,15.3043]
[1718472325710,13.2509,145.08,145.05,7.6522]
[1718472326409,13.2509,145.08,145.05,15.3047]
[1718472327111,8.1503,145.08,145.05,15.3047]
[1718472328009,8.1503,145.08,145.05,12.754]
[1718472329084,2.5503,145.08,145.05,15.3046]
[1718472330205,2.5503,145.08,145.05,12.754]
[1718472330610,31.102,145.09,145.05,12.754]
[1718472330806,8.1502,145.09,145.06,7.6518]
[1718472331009,8.1502,145.09,145.06,15.3037]
[1718472331200,2.5502,145.09,145.06,15.3037]
[1718472331402,25.5006,145.1,145.07,2.5504]
[1718472331606,31.1006,145.1,145.07,2.5504]
[1718472332519,2.5501,145.09,145.06,15.3037]
[1718472332709,7.6499,145.1,145.07,15.3026]
[1718472333214,2.55,145.1,145.07,15.3026]
[1718472333419,7.6499,145.1,145.07,15.3026]
[1718472334518,2.5501,145.09,145.07,2.5503]
[1718472335421,25.4999,145.1,145.07,7.6512]
[1718472336816,25.03355318,145.12,145.06,5.6]
[1718472337021,2.5498,145.11,145.09,2.55]
[1718472337200,2.5498,145.11,145.09,2.5501]
[1718472337517,2.5498,145.11,145.08,15.3011]
[1718472338113,2.5498,145.11,145.08,12.751]
[1718472338313,7.6493,145.11,145.08,15.3011]
[1718472338710,7.6493,145.11,145.09,2.5501]
[1718472338911,7.18222389,145.16,145.05,35.9457]
[1718472339096,2.5492,145.14,145.12,2.5494]
[1718472339292,31.0894,145.16,145.13,7.648]
[1718472339506,15.2936,145.16,145.13,15.296]
[1718472339706,22.9402,145.16,145.13,7.648]
[1718472339920,7.6472,145.15,145.12,15.2968]
[1718472340401,7.6472,145.15,145.13,2.5494]
[1718472341827,22.9403,145.16,145.13,5.0987]
[1718472341993,22.936,145.19,145.13,5.6]
[1718472342192,2.5484,145.19,145.17,2.5486]
[1718472342388,15.2904,145.19,145.16,15.2926]
[1718472342620,7.6452,145.19,145.16,12.7439]
[1718472342923,7.6452,145.19,145.16,12.7438]
[1718472343797,7.6452,145.19,145.17,7.646]
[1718472345205,17.8368,145.21,145.18,5.097]
[1718472345420,2.5482,145.2,145.18,15.2909]
[1718472345729,7.6446,145.2,145.18,7.6454]
[1718472345914,2.5484,145.19,145.17,7.6458]
[1718472346103,2.5482,145.2,145.18,7.6455]
[1718472346297,7.6446,145.2,145.18,7.6455]
[1718472348625,2.5482,145.2,145.18,15.2911]
[1718472348805,7.176866,145.23,145.19,7.645]
[1718472349004,17.8314,145.25,145.19,5.6]
[1718472349213,7.6422,145.25,145.23,2.5476]
[1718472349417,256.7,145.26,145.21,5.6]
[1718472349601,256.7,145.26,145.25,2.5473]
[1718472350024,22.9214,145.28,145.26,2.5471]
[1718472350229,2.5466,145.29,145.27,2.5469]
[1718472350528,17.8258,145.3,145.28,2.5467]
[1718472350529,18.3324,145.3,145.28,2.5467]
[1718472350700,17.8254,145.3,145.28,2.5467]
[1718472350907,25.465,145.3,145.28,2.5467]
[1718472351316,7.639,145.31,145.29,7.6397]
[1718472351507,7.639,145.31,145.29,2.5465]
[1718472351710,22.9158,145.32,145.29,5.0932]
[1718472351910,2.5463,145.31,145.29,7.6397]
[1718472352110,7.6388,145.31,145.29,2.5465]
[1718472352509,15.2776,145.31,145.28,15.2802]
[1718472352723,2.5464,145.3,145.28,15.2802]
[1718472352930,25.4628,145.31,145.28,15.2802]
[1718472353323,25.4628,145.31,145.29,2.5466]
[1718472353630,25.4628,145.31,145.28,12.7336]
[1718472353922,7.6389,145.31,145.28,12.7336]
[1718472357216,2.5466,145.29,145.27,7.6407]
[1718472357878,2.5466,145.29,145.27,15.2816]
[1718472358142,13.2397,145.3,145.27,12.7348]
[1718472358345,20.879,145.3,145.27,12.7348]
[1718472358642,13.2397,145.3,145.28,5.0936]
[1718472358844,13.2397,145.3,145.28,7.6403]
[1718472359214,13.2397,145.3,145.28,2.5467]
[1718472359518,8.1466,145.3,145.28,7.6402]
[1718472360325,5.6,145.3,145.28,15.2805]
[1718472360526,5.6,145.3,145.28,15.2804]
[1718472360834,7.6391,145.31,145.29,2.5466]
[1718472361040,13.2391,145.31,145.29,7.6398]
[1718472361240,8.1464,145.31,145.29,7.6398]
[1718472361533,2.5461,145.32,145.3,5.0929]
[1718472361747,8.1461,145.32,145.3,15.2784]
[1718472361954,5.6,145.32,145.3,15.2784]
[1718472362346,8.1461,145.32,145.3,15.2784]
[1718472362552,286.78717986,145.33,145.3,12.7322]
[1718472362553,289.33327986,145.33,145.3,12.7322]
[1718472362735,5.6,145.32,145.31,2.5462]
[1718472362942,277.11117986,145.33,145.31,2.5462]
[1718472363148,7.17327986,145.33,145.31,5.0924]
[1718472363469,8.1457,145.34,145.32,15.2762]
[1718472363636,28.5119,145.34,145.31,5.0923]
[1718472363843,28.5119,145.34,145.31,7.6384]
[1718472363844,2.5459,145.33,145.31,7.6384]
[1718472364158,8.1459,145.33,145.31,7.6384]
[1718472364331,5.6,145.33,145.32,2.5461]
[1718472365261,7.6374,145.34,145.32,7.6383]
[1718472365431,5.6,145.33,145.32,2.5461]
[1718472366068,5.6,145.33,145.31,7.6384]
[1718472366271,8.1459,145.33,145.31,7.6384]
[1718472367158,2.5459,145.33,145.31,7.6384]
[1718472367666,7.6377,145.33,145.31,7.6384]
[1718472368037,7.6377,145.33,145.31,2.5461]
[1718472368263,2.5461,145.32,145.3,7.6388]
[1718472368439,2.5462,145.31,145.29,7.6394]
[1718472368757,15.2775,145.31,145.29,2.5464]
[1718472368931,7.6387,145.31,145.29,2.5464]
[1718472369362,2.5462,145.31,145.29,7.6395]
[1718472369746,2.5462,145.31,145.28,7.6401]
[1718472369747,15.2776,145.31,145.28,12.7335]
[1718472370428,7.6388,145.31,145.28,12.7335]
[1718472371051,31.0617,145.32,145.29,12.7327]
[1718472371664,31.0617,145.32,145.29,15.2791]
[1718472372035,13.2386,145.32,145.29,12.7327]
[1718472372757,7.638,145.33,145.3,12.7321]
[1718472373064,40.224203,145.35,145.31,7.6384]
[1718472373356,0.850503,145.35,145.34,2.5457]
[1718472373562,8.487203,145.35,145.33,2.5458]
[1718472373763,16.123903,145.35,145.33,2.5458]
[1718472373964,2.5457,145.34,145.32,15.2758]
[1718472374138,14.087303,145.35,145.33,2.5459]
[1718472374341,21.724003,145.35,145.33,2.5459]
[1718472374743,16.124003,145.35,145.33,2.5459]
[1718472375241,23.760603,145.35,145.32,15.2758]
[1718472375441,26.306303,145.35,145.32,15.2758]
[1718472376159,0.850503,145.35,145.33,5.0917]
[1718472376366,0.850503,145.35,145.34,2.5457]
[1718472376539,0.850503,145.35,145.34,5.0915]
[1718472376745,0.850503,145.35,145.34,7.6372]
[1718472378649,0.850503,145.35,145.34,13.2372]
[1718472380268,0.850503,145.35,145.34,7.6372]
[1718472387773,0.850503,145.35,145.34,13.2372]
[1718472388186,0.850503,145.35,145.34,7.6372]
[1718472399664,0.850503,145.35,145.34,13.2372]
[1718472399862,0.850503,145.35,145.34,7.6372]
[1718472403923,0.850503,145.35,145.31,5.0924]
[1718472403924,7.6374,145.34,145.31,5.0924]
[1718472404206,8.1457,145.34,145.32,7.6381]
[1718472404587,2.5457,145.34,145.32,7.6381]
[1718472404900,8.487403,145.35,145.33,2.5459]
[1718472405292,3.396103,145.35,145.32,2.5459]
[1718472405490,3.396103,145.35,145.32,7.6379]
[1718472405976,8.487203,145.35,145.32,7.6379]
[1718472406175,3.396103,145.35,145.33,2.5459]
[1718472406515,3.396003,145.35,145.33,7.6377]
[1718472406717,3.396003,145.35,145.33,2.5459]
[1718472407613,8.487103,145.35,145.32,7.6378]
[1718472407814,8.487103,145.35,145.32,5.0919]
[1718472408115,3.396003,145.35,145.32,5.0919]
[1718472409979,0.850503,145.35,145.33,5.0918]
[1718472411206,3.396103,145.35,145.33,2.5458]
[1718472412019,0.850503,145.35,145.33,7.6376]
[1718472413212,3.396003,145.35,145.33,7.6376]
[1718472413389,3.396003,145.35,145.33,2.5458]
[1718472414194,8.996003,145.35,145.33,2.5458]
[1718472414788,14.087203,145.35,145.32,7.6378]
[1718472414990,14.087203,145.35,145.32,5.0919]
[1718472415207,8.487203,145.35,145.32,5.0919]
[1718472415422,8.487203,145.35,145.32,7.6378]
[1718472416081,8.487203,145.35,145.32,5.0919]
[1718472416803,8.487203,145.35,145.32,7.6378]
[1718472417188,8.487203,145.35,145.33,2.5459]
[1718472417585,3.396003,145.35,145.33,2.5459]
[1718472417779,8.487103,145.35,145.32,7.6378]
[1718472418211,8.487103,145.35,145.33,2.5459]
[1718472418420,20.3667,145.34,145.31,5.0925]
[1718472418586,31.0582,145.34,145.31,7.6386]
[1718472418906,13.2374,145.34,145.31,7.6386]
[1718472419429,8.1458,145.34,145.32,2.546]
[1718472419730,13.2373,145.34,145.31,5.0925]
[1718472420204,8.1458,145.34,145.31,5.0925]
[1718472421608,24.059403,145.35,145.32,2.5459]
[1718472421820,5.6,145.34,145.32,7.6379]
[1718472422114,8.1457,145.34,145.32,2.5459]
[1718472423601,13.2372,145.34,145.31,5.0922]
[1718472423809,8.1457,145.34,145.32,2.5461]
[1718472424909,8.1457,145.34,145.31,5.0922]
[1718472424910,13.2372,145.34,145.31,7.6383]
[1718472425217,13.2372,145.34,145.32,2.5461]
[1718472425514,8.1457,145.34,145.32,2.5461]
[1718472426021,5.6,145.34,145.32,7.6383]
[1718472426201,0.850503,145.35,145.33,7.6376]
[1718472426902,3.396003,145.35,145.33,7.6376]
[1718472428022,3.396003,145.35,145.32,5.0919]
[1718472428207,29.360703,145.35,145.32,7.6378]
[1718472428523,2.5457,145.34,145.32,7.6378]
[1718472429317,31.906403,145.35,145.32,7.6378]
[1718472430239,14.087303,145.35,145.33,2.5459]
[1718472430404,8.996203,145.35,145.32,5.0919]
[1718472431734,6.450503,145.35,145.3,5.6]
[1718472432033,0.850503,145.35,145.34,7.6372]
[1718472434326,0.850503,145.35,145.34,13.2372]
[1718472442418,0.850503,145.35,145.34,7.6372]
[1718472446535,0.850503,145.35,145.34,2.5457]
[1718472446750,6.450503,145.35,145.34,2.5457]
[1718472446947,6.450503,145.35,145.33,7.6375]
[1718472447424,6.450503,145.35,145.33,5.0917]
[1718472448732,6.450503,145.35,145.34,7.6372]
[1718472449042,6.450503,145.35,145.34,2.5457]
[1718472449250,6.450503,145.35,145.33,7.6373]
[1718472449559,6.450503,145.35,145.34,2.5457]
[1718472450050,0.850503,145.35,145.34,2.5457]
[1718472452352,0.850503,145.35,145.34,7.6372]
[1718472453538,0.850503,145.35,145.34,2.5457]
[1718472453920,0.850503,145.35,145.33,7.6373]
[1718472454626,0.850503,145.35,145.33,2.5457]
[1718472455126,6.450503,145.35,145.33,2.5457]
[1718472455647,2.5458,145.34,145.31,5.0923]
[1718472455975,5.6,145.32,145.3,7.6389]
[1718472456258,5.6,145.32,145.31,2.5462]
[1718472456452,5.6,145.32,145.3,7.6389]
[1718472456828,5.6,145.32,145.3,5.0926]
[1718472457937,5.6,145.32,145.3,7.6389]
[1718472458453,5.6,145.32,145.3,5.0926]
[1718472461755,5.6,145.32,145.31,2.5462]
[1718472462063,5.6,145.32,145.31,7.6387]
[1718472463549,5.6,145.32,145.31,2.5462]
[1718472464478,5.6,145.32,145.31,7.6387]
[1718472465362,5.6,145.32,145.31,2.5462]
[1718472465868,8.1461,145.32,145.3,2.5464]
[1718472466039,5.6,145.31,145.29,2.5465]
[1718472466245,5.6,145.3,145.29,2.5465]
[1718472467052,5.6,145.3,145.29,7.6397]
[1718472467574,5.6,145.3,145.29,2.5465]
[1718472469479,5.6,145.3,145.29,7.6397]
[1718472469974,5.94,145.3,145.27,5.0938]
[1718472470177,5.6,145.29,145.27,12.7345]
[1718472470384,0.34,145.3,145.27,12.7345]
[1718472470549,5.94,145.3,145.27,12.7345]
[1718472471466,13.5793,145.3,145.27,12.7345]
[1718472471653,5.6,145.29,145.27,7.6406]
[1718472472255,5.6,145.29,145.28,5.0936]
[1718472472659,5.6,145.29,145.27,12.7346]
[1718472473377,5.6,145.29,145.27,15.2814]
[1718472473673,5.6,145.29,145.27,7.6409]
[1718472473878,5.6,145.29,145.27,12.7346]
[1718472474178,8.4864,145.3,145.27,15.2814]
[1718472474381,8.4864,145.3,145.27,12.7346]
[1718472474766,5.6,145.29,145.27,15.2814]
[1718472477083,5.6,145.29,145.28,7.6404]
[1718472477252,0.34,145.3,145.28,12.7339]
[1718472477450,0.34,145.3,145.28,15.2805]
[1718472477989,5.6,145.29,145.28,15.2805]
[1718472478170,16.5484,145.33,145.23,6.402]
[1718472478380,19.0944,145.33,145.3,5.0928]
[1718472478690,5.6,145.32,145.31,2.5462]
[1718472479279,5.6,145.32,145.3,15.2779]
[1718472479488,5.6,145.32,145.3,7.6389]
[1718472480579,25.51218092,145.34,145.31,2.5462]
[1718472480779,8.1458,145.34,145.31,5.0924]
[1718472481076,8.1458,145.34,145.31,7.6385]
[1718472481250,8.487603,145.35,145.32,7.638]
[1718472481453,8.996203,145.35,145.32,7.638]
[1718472481652,3.396203,145.35,145.32,5.0921]
[1718472481888,8.487303,145.35,145.32,7.638]
[1718472483081,0.850503,145.35,145.33,2.5459]
[1718472483254,0.850503,145.35,145.33,7.6375]
[1718472484073,0.850503,145.35,145.34,7.6372]
[1718472484272,0.850503,145.35,145.34,13.2372]
[1718472497988,0.850503,145.35,145.34,34.6172]
[1718472502993,47.9437,145.44,145.41,2.5445]
[1718472503201,2.5441,145.43,145.41,2.5445]
[1718472503375,2.5441,145.43,145.41,7.6335]
[1718472503889,47.9437,145.44,145.41,7.6335]
[1718472504194,2.5441,145.43,145.41,7.6335]
[1718472504403,47.9437,145.44,145.41,7.6335]
[1718472505213,2.5442,145.43,145.41,7.6335]
[1718472505913,2.5442,145.43,145.41,2.5445]
[1718472506295,15.2651,145.43,145.4,7.6336]
[1718472506902,7.6326,145.43,145.4,5.0891]
[1718472507213,2.5442,145.43,145.41,2.5445]
[1718472507588,2.5442,145.43,145.41,7.6335]
[1718472507895,47.9439,145.44,145.41,7.6335]
[1718472508096,2.5441,145.43,145.41,7.6335]
[1718472508603,45.3998,145.44,145.41,7.6335]
[1718472508914,47.9439,145.44,145.41,7.6335]
[1718472510528,22.5029,145.44,145.39,5.6]
[1718472510720,22.5029,145.44,145.42,2.5443]
[1718472510721,25.0469,145.44,145.42,2.5443]
[1718472510894,30.1349,145.44,145.41,2.5443]
[1718472511093,37.7669,145.44,145.41,7.6332]
[1718472511293,45.3989,145.44,145.41,7.6332]
[1718472511495,47.943,145.44,145.41,7.6332]
[1718472512099,30.135,145.44,145.41,7.6332]
[1718472512899,22.8977,145.43,145.4,2.5445]
[1718472513106,5.0884,145.43,145.41,2.5445]
[1718472513312,2.5442,145.43,145.38,5.6]
[1718472513528,2.5442,145.43,145.41,2.5444]
[1718472513817,2.5442,145.43,145.4,5.0891]
[1718472514116,53.544,145.44,145.41,7.6334]
[1718472514324,35.7352,145.44,145.42,2.5443]
[1718472515021,2.5441,145.43,145.41,7.6333]
[1718472515194,50.9992,145.44,145.41,7.6333]
[1718472515195,53.5433,145.44,145.41,7.6333]
[1718472515395,2.5442,145.43,145.41,7.6333]
[1718472515725,2.5442,145.43,145.41,2.5443]
[1718472516223,2.5442,145.43,145.41,7.6333]
[1718472516421,53.5433,145.44,145.41,7.6333]
[1718472516729,2.5442,145.43,145.41,2.5443]
[1718472516909,53.5433,145.44,145.41,7.6333]
[1718472517226,35.7352,145.44,145.41,5.089]
[1718472517396,43.3672,145.44,145.41,7.6333]
[1718472518024,22.5029,145.44,145.42,7.6329]
[1718472518220,22.5029,145.44,145.43,2.5441]
[1718472518410,22.5029,145.44,145.42,7.6328]
[1718472519199,25.0469,145.44,145.42,7.6328]
[1718472519411,16.0303,145.44,145.43,2.5441]
[1718472519816,16.0303,145.44,145.42,7.6328]
[1718472520228,16.0303,145.44,145.42,5.0886]
[1718472520605,2.5437,145.46,145.44,2.5439]
[1718472520939,2.5437,145.46,145.43,7.6321]
[1718472520940,7.631,145.46,145.43,7.6321]
[1718472521607,22.8928,145.46,145.43,7.6321]
[1718472521806,25.4365,145.46,145.43,7.6321]
[1718472522034,2.5438,145.45,145.43,2.544]
[1718472522233,2.544,145.44,145.42,7.6326]
[1718472522533,7.6315,145.45,145.43,2.5441]
[1718472523422,2.5439,145.45,145.43,2.5441]
[1718472524218,25.4373,145.46,145.43,7.6323]
[1718472524418,2.5438,145.45,145.43,7.6323]
[1718472524730,25.4374,145.46,145.43,7.6323]
[1718472525728,7.6313,145.46,145.44,2.5439]
[1718472526112,2.5438,145.46,145.44,2.5439]
[1718472526631,15.2621,145.46,145.43,7.6322]
[1718472526843,2.5438,145.45,145.43,7.6322]
[1718472527003,25.4367,145.46,145.43,7.6322]
[1718472528837,2.5438,145.45,145.43,2.544]
[1718472529336,2.5438,145.45,145.43,7.6323]
[1718472530233,25.4367,145.46,145.43,7.6323]
[1718472530913,15.4584,145.48,145.39,43.1]
[1718472531214,0.850503,145.49,145.46,5.0871]
[1718472531410,2.5433,145.48,145.46,7.6306]
[1718472531614,26.282103,145.49,145.46,7.6306]
[1718472532524,2.5433,145.48,145.46,7.6306]
[1718472532737,26.282103,145.49,145.46,7.6306]
[1718472532944,2.5433,145.48,145.46,7.6306]
[1718472533546,2.5435,145.47,145.4,15.7559]
[1718472533843,2.5435,145.47,145.45,2.5437]
[1718472534039,7.6304,145.47,145.45,2.5437]
[1718472534548,7.6304,145.47,145.45,7.6313]
[1718472534549,2.5435,145.47,145.45,7.6313]
[1718472534750,2.5434,145.47,145.45,7.6313]
[1718472535243,31.0339,145.48,145.45,7.6313]
[1718472535452,28.4905,145.48,145.45,7.6313]
[1718472535616,2.5434,145.48,145.46,2.5436]
[1718472535820,8.1434,145.48,145.46,2.5436]
[1718472536039,5.6,145.47,145.4,15.5859]
[1718472536350,15.3873,145.47,145.45,7.6313]
[1718472536520,20.9873,145.47,145.46,2.5436]
[1718472536719,5.6,145.48,145.46,7.6307]
[1718472536941,8.1433,145.48,145.46,2.5436]
[1718472538225,8.1433,145.48,145.46,7.6308]
[1718472539354,8.1433,145.48,145.46,2.5436]
[1718472540551,2.5433,145.48,145.46,2.5436]
[1718472540753,7.6299,145.48,145.46,2.5436]
[1718472541056,2.5434,145.47,145.45,7.631]
[1718472541363,31.0331,145.48,145.45,7.631]
[1718472541541,7.6304,145.47,145.45,2.5436]
[1718472541845,5.6,145.47,145.45,7.6312]
[1718472542050,5.6,145.47,145.4,15.5859]
[1718472542051,2.5434,145.48,145.46,7.6308]
[1718472542348,8.1434,145.48,145.46,7.6308]
[1718472542745,8.1434,145.48,145.46,2.5436]
[1718472542942,2.5434,145.48,145.45,5.0874]
[1718472543252,3.393703,145.49,145.47,2.5434]
[1718472543447,8.993703,145.49,145.47,2.5434]
[1718472543653,14.079903,145.49,145.47,2.5434]
[1718472543832,21.709203,145.49,145.46,7.6305]
[1718472544531,14.079903,145.49,145.47,2.5434]
[1718472546262,3.393703,145.49,145.47,7.6303]
[1718472546474,0.850503,145.49,145.47,5.0869]
[1718472546965,3.393603,145.49,145.47,7.6303]
[1718472547146,3.393603,145.49,145.47,2.5434]
[1718472547540,16.109303,145.49,145.46,7.6307]
[1718472547740,8.479903,145.49,145.46,5.0872]
[1718472547960,14.079903,145.49,145.46,7.6306]
[1718472548254,14.079903,145.49,145.46,5.0872]
[1718472548847,8.479903,145.49,145.46,5.0872]
[1718472549173,3.393603,145.49,145.47,2.5434]
[1718472549544,8.993603,145.49,145.47,2.5434]
[1718472549761,8.993603,145.49,145.47,7.6303]
[1718472550439,8.993603,145.49,145.47,2.5434]
[1718472551242,0.850503,145.49,145.47,2.5434]
[1718472551443,0.850503,145.49,145.48,2.5433]
[1718472551857,0.850503,145.49,145.48,7.6299]
[1718472552342,0.850503,145.49,145.48,2.5433]
[1718472552546,0.850503,145.49,145.47,7.63]
[1718472556281,3.393603,145.49,145.47,7.63]
[1718472556447,0.850503,145.49,145.47,7.63]
[1718472556645,16.109303,145.49,145.46,7.6305]
[1718472556951,21.709303,145.49,145.46,7.6305]
[1718472557867,14.079903,145.49,145.46,7.6305]
[1718472558176,21.709303,145.49,145.46,7.6305]
[1718472558772,3.393603,145.49,145.46,5.087]
[1718472558943,0.850503,145.49,145.47,7.6301]
[1718472559145,0.850503,145.49,145.48,2.5433]
[1718472559356,0.850503,145.49,145.48,7.6299]
[1718472561194,0.850503,145.49,145.48,29.0408]
[1718472565371,0.850503,145.49,145.48,7.6299]
[1718472565786,6.450503,145.49,145.48,7.6299]
[1718472567060,0.850503,145.49,145.48,7.6299]
[1718472567868,6.450503,145.49,145.48,7.6299]
[1718472568187,8.993603,145.49,145.47,7.63]
[1718472568385,0.850503,145.49,145.48,5.0866]
[1718472568603,0.850503,145.49,145.48,2.5433]
[1718472568884,0.850503,145.49,145.48,7.6299]
[1718472569064,6.450503,145.49,145.48,7.6299]
[1718472569267,8.993603,145.49,145.47,7.63]
[1718472569460,8.993603,145.49,145.47,5.0867]
[1718472569656,2.5433,145.48,145.47,2.5433]
[1718472569899,13.23,145.48,145.46,7.6306]
[1718472570082,5.6,145.47,145.46,7.6306]
[1718472571180,8.1434,145.47,145.45,7.6311]
[1718472571383,2.5433,145.48,145.46,2.5435]
[1718472571688,2.544,145.44,145.37,6.0039]